Cogmind - Beta 17.1 @@@ ROGUE MODE // 2026.08.25 @ 13:10:07 Player: obl-vn Result: Self-destructed Performance ------------- Evolutions (2) 1000 Regions Visited (6) 1200 Robots Destroyed (43) 215 Value Destroyed (1467) 1467 Prototype IDs (40) 800 Alien Tech Used (0) 0 Bonus (10390) 10390 TOTAL SCORE: 15072 Bonus ------- Follower Combat Kills 549 Prayed to X0-1V1 5000 Major X0-1V1 Interference 4700 Registered with UFD 300 Friendly Fire -159 Cogmind --------- Core Integrity 195/310 Matter 107/300 Energy 22/100 System Corruption 3% Temperature Cool (0) Movement Rolling (105) Ox1 Location -8/Scraptown Parts ------- > --- POWER (1) -------- (None) > --- PROPULSION (2) --- Armored Wheel Armored Wheel > --- UTILITY (6) ------ Large Storage Unit Heavy Armor Plating X0-1V1's Piety Tracker > --- WEAPON (2) ------- EMP Blaster > --- INVENTORY (15) --- Light Deuterium Engine Light Deuterium Engine Compact Wheel Armored Wheel High-capacity Storage Unit High-capacity Matter Pod (180) A0-MCA's Component Scanner Minigun High-powered Shotgun CPS Tube (2) Companion Sword Peak State ------------ > --- POWER ------------ F-cell Engine > --- PROPULSION ------- Armored Huge Wheel > --- UTILITY ---------- Large Storage Unit Improved Matter Compressor Long-range Terrain Scanner Long-range Terrain Scanner Self-contained Transmogrifier X0-1V1's Piety Tracker > --- WEAPON ----------- Improved EM Shotgun EM Pulse Cannon > --- INVENTORY -------- Light Deuterium Engine Advanced Treads Advanced Treads Advanced Treads Advanced Treads Armored Wheel Armored Wheel High-capacity Storage Unit Heavy Armor Plating EMP Blaster EMP Blaster Rocket Launcher Rocket Launcher [Rating: 67] Favorites ----------- Power Light Deuterium Engine Engine Light Deuterium Engine Power Core Enhanced Fission Core Propulsion Armored Wheel Treads Light Treads Wheel Armored Wheel Utility Large Storage Unit Device X0-1V1's Piety Tracker Storage Large Storage Unit Processor Experimental Signal Interpreter Hackware Improved Hacking Suite Protection Makeshift Heavy Armor Plating Weapon Assault Rifle Energy Gun Heavy EM Pulse Gun Energy Cannon EM Pulse Cannon Ballistic Gun Assault Rifle Launcher Rocket Launcher Special Weapon Remote Datajack Impact Weapon Great Maul Slashing Weapon Scythe Build | -11 -10 -9 -8 -8 -8 -8 ------- Run | Yrd Mat Mat Mat Sto Rec Scr Slots Evolved 4 | . . 2 2 . . . Power . | . . . . . . . Propulsion . | . . . . . . . Utility 4 | . . 2 2 . . . Weapon . | . . . . . . . Parts Attached 44 | 6 9 15 2 4 . 8 Power 3 | 1 . 1 . . . 1 Engine 3 | 1 . 1 . . . 1 Core . | . . . . . . . Reactor . | . . . . . . . Propulsion 14 | 2 5 6 . 1 . . Treads 10 | 2 2 6 . . . . Leg . | . . . . . . . Wheel 4 | . 3 . . 1 . . Hover . | . . . . . . . Flight . | . . . . . . . Utility 9 | 1 3 1 2 . . 2 Device 4 | . 2 1 1 . . . Storage 2 | 1 1 . . . . . Processor 1 | . . . 1 . . . Hackware . | . . . . . . . Protection 2 | . . . . . . 2 Artifact . | . . . . . . . Weapon 18 | 2 1 7 . 3 . 5 Energy Gun 5 | . . 3 . 2 . . Energy Cannon . | . . . . . . . Ballistic Gun 6 | 2 . 2 . . . 2 Ballistic Cannon . | . . . . . . . Launcher 5 | . 1 1 . 1 . 2 Special Weapon . | . . . . . . . Impact Weapon 1 | . . 1 . . . . Slashing Weapon 1 | . . . . . . 1 Piercing Weapon . | . . . . . . . Special Melee Weapon . | . . . . . . . Unidentified Prototypes 3 | . 1 1 . . . 1 Corrupted Parts 4 | . 3 . . . . 1 System Corruption 26 | . 23 . . . . 3 Parts Lost 10 | . . 4 . . . 6 Power 1 | . . . . . . 1 Propulsion 3 | . . 3 . . . . Utility 3 | . . . . . . 3 Weapon 3 | . . 1 . . . 2 Highest Loss Streak 6 | . . 1 . . . 6 To Critical Strikes 1 | . . 1 . . . . Average Backups 13 | . 6 12 15 14 13 13 Power 1 | . . . 1 1 1 1 Propulsion 5 | . 2 4 7 6 6 5 Utility 1 | . 1 1 1 1 2 2 Weapon 4 | . 2 6 6 5 4 4 Tool/Special . | . . . . . . . Unused Backups 18 | . 2 3 . . . 13 Power 5 | . 1 1 . . . 3 Propulsion 6 | . . 1 . . . 5 Utility 3 | . . . . . . 3 Weapon 2 | . 1 1 . . . . Tool/Special 2 | . . . . . . 2 Average Slot Usage (%) 61 | . 98 96 95 91 90 56 Engine 2 | . 14 11 9 9 9 . Treads 3 | . 27 21 18 8 1 . Wheel 1 | . . . . 9 10 1 Device 30 | . 13 25 33 25 23 32 Storage 9 | . 13 11 9 9 9 9 Processor 4 | . . . 6 3 14 4 Protection 5 | . . 5 . 8 3 5 Energy Gun 1 | . 11 5 . 4 9 . Ballistic Gun 1 | . 15 12 . 8 . . Peak Build Rating 67 | 6 28 45 52 55 59 67 Average Rating 43 | 4 15 37 50 53 56 45 On Entrance 34 | . 6 23 45 52 53 59 Avg Prop Armor Cover (%) 5 | . . . . 6 5 . Naked Turns . | . . . . . . . Heaviest Build 66 | 12 35 43 42 53 53 66 Greatest Support 60 | 40 43 43 42 42 28 60 Greatest Overweight (x) 4 | 2 . 2 . 4 4 2 Average Overweight (x) 1 | . . . . 3 1 1 Largest Inventory Capacity 15 | 8 15 15 15 15 15 15 Average Capacity 14 | 7 9 15 15 15 15 15 Most Carried 15 | 1 15 15 15 15 14 15 Average Carried 14 | . 6 13 15 14 14 14 Final Capacity 15 | 8 15 15 15 15 15 15 Final Carried 15 | 1 14 15 15 14 14 11 Transmogrified Parts 283 | . 8 6 1 7 8 253 Integrity Recovered 651 | . 108 84 . 66 81 312 Class Distribution -------------------- 100% | Mutant Dominant Class ---------------- Mutant | -10/Materials Mutant | -9/Materials Mutant | -8/Materials Mutant | -8/Storage Mutant | -8/Recycling Mutant | -8/Scraptown Resources | -11 -10 -9 -8 -8 -8 -8 ----------- Run | Yrd Mat Mat Mat Sto Rec Scr Matter Collected 1803 | 224 218 424 23 113 384 417 Remotely . | . . . . . . . Salvage Created 1694 | . 321 695 23 173 120 362 Parts 102 | . 19 44 2 10 9 18 Haulers Intercepted 2 | . 1 1 . . . . Recyclers Shooed 2 | . 1 1 . . . . Parts Field Recycled . | . . . . . . . Retrieved Matter . | . . . . . . . Parts Self-Destructed 2 | . . . . . . 2 Prevented . | . . . . . . . Parts Restored . | . . . . . . . Kills | -11 -10 -9 -8 -8 -8 -8 ------- Run | Yrd Mat Mat Mat Sto Rec Scr Combat Hostiles Destroyed 36 | . 7 16 1 3 2 7 Melee 5 | . . 2 1 2 . . Guns 15 | . 6 8 . . 1 . Cannons 3 | . . 1 . 1 1 . AOE 12 | . 1 4 . . . 7 Classes Destroyed 11 | . 4 2 1 . . 4 Hauler 2 | . 1 1 . . . . Operator 3 | . 2 1 . . . . Watcher 1 | . . 1 . . . . Swarmer 6 | . 3 3 . . . . Grunt 11 | . 4 6 . 1 . . Sentry 11 | . . 7 . 2 2 . Hunter 1 | . . . 1 . . . Bolteater 1 | . . . . . . 1 Federalist 1 | . . . . . . 1 Scrapper 5 | . . . . . . 5 Zionite 1 | . . . . . . 1 Best Kill Streak 6 | . 3 6 1 1 1 4 Combat Bots Only 6 | . 3 6 1 1 1 4 Max Kills in Single Turn 2 | . 1 2 1 1 1 2 Gunslinging . | . . . . . . . Exploded 2 | . 1 2 . . . 2 Melee 1 | . . 1 1 1 . . Uniques/NPCs Destroyed 1 | . . . . . . 1 Triborg (-8/Scraptown) Combat | -11 -10 -9 -8 -8 -8 -8 -------- Run | Yrd Mat Mat Mat Sto Rec Scr Hostile Shots Fired 335 | . 26 129 10 34 2 134 Missed 111 | . 10 45 4 13 . 39 Hits 224 | . 16 84 6 21 2 95 Melee 16 | . . . . . . 16 Projectile 208 | . 16 84 6 21 2 79 Critical Strikes 4 | . 1 2 . . . 1 Damage Taken 3392 | . 219 1156 65 237 27 1688 Core 364 | . 61 181 . 7 14 101 Absorbed by Shields 79 | . . . 38 22 . 19 Ignored by Resistances 40 | . . 17 . 23 . . Regen/Repaired (Parts) 51 | . . . . . . 51 Core Remaining (%) 55 | 100 39 27 . . . . Volleys Fired 116 | . 31 54 . 6 6 19 Largest 2 | . 2 2 . 2 2 2 Hottest 124 | . 85 124 . 119 119 50 Shots Fired 195 | . 58 100 . 8 9 20 Gun 160 | . 57 90 . 5 6 2 Cannon 12 | . . 7 . 2 3 . Launcher 23 | . 1 3 . 1 . 18 Special . | . . . . . . . Kinetic 106 | . 34 69 . 1 . 2 Thermal 21 | . 2 12 . 4 3 . Explosive 18 | . 1 3 . 1 . 13 Electromagnetic 50 | . 21 16 . 2 6 5 Robot Hit Streak 22 | . 9 22 . 10 13 9 Robot Miss Streak 4 | . 2 4 . . 1 3 Penetration Max . | . . . . . . . Secondary Targets 2 | . 2 . . . . . Max Gunslinging Chain 1 | . 1 . . . . . Shots Hit Robots 144 | . 35 78 2 9 6 14 Core Hits 87 | . 16 27 2 4 3 35 Critical Kills . | . . . . . . . Critical Parts Destroyed 2 | . 1 1 . . . . Critical Strikes 5 | . 1 2 . 2 . . Burn 2 | . . 1 . 1 . . Destroy 2 | . 1 1 . . . . Sever 1 | . . . . 1 . . Melee Attacks 20 | . . 8 3 5 . 4 Impact 3 | . . . 2 1 . . Slashing 17 | . . 8 1 4 . 4 Piercing . | . . . . . . . Sneak Attacks . | . . . . . . . Combat Hostiles . | . . . . . . . Follow-up Attacks . | . . . . . . . Damage Inflicted 4098 | . 581 1578 139 231 103 1466 Guns 1687 | . 529 1025 . 47 59 27 Cannons 188 | . . 61 29 54 44 . Explosions 1711 | . 52 307 12 6 . 1334 Melee 512 | . . 185 98 124 . 105 Ramming . | . . . . . . . Kinetic 1188 | . 282 819 41 19 . 27 Thermal 271 | . 64 149 . 28 30 . Explosive 1449 | . . 263 . 6 . 1180 Electromagnetic 678 | . 235 162 . 54 73 154 Impact 98 | . . . 98 . . . Slashing 414 | . . 185 . 124 . 105 Piercing . | . . . . . . . Highest Corruption 23 | . 23 19 . . . 3 Average Corruption 18 | . 16 19 . . . 3 Corruption Purged . | . . . . . . . Corruption Blocked . | . . . . . . . Effects 34 | . . 34 . . . . Message Errors 8 | . . 8 . . . . Matter Fused 9 | . . 9 . . . . Heat Flow Errors 3 | . . 3 . . . . Energy Discharges 4 | . . 4 . . . . Data Loss (minor) 3 | . . 3 . . . . Data Loss (major) 1 | . . 1 . . . . Misfires 1 | . . 1 . . . . Alerts 1 | . . 1 . . . . Weapon Failures 4 | . . 4 . . . . Overload Shots . | . . . . . . . Overflow Damage 93 | . . 21 . . . 72 Projectiles . | . . . . . . . Explosions 60 | . . . . . . 60 Melee 33 | . . 21 . . . 12 Knockbacks . | . . . . . . . Impact . | . . . . . . . Kinetic . | . . . . . . . Secondary . | . . . . . . . Self-Inflicted Damage 222 | . 25 48 13 17 . 119 Shots 7 | . 1 1 1 1 . 3 Rammed . | . . . . . . . Targets Rammed . | . . . . . . . Kicked . | . . . . . . . Crushed . | . . . . . . . Highest Temperature 332 | . 193 174 . 108 57 332 Average Temperature 95 | . 43 38 . 41 26 220 Received Heat Transfer 762 | . 78 396 30 49 9 200 Effects 3 | . . . . . . 3 Energy Bleed 1 | . . . . . . 1 Damage (minor) 2 | . . . . . . 2 Siege Activations . | . . . . . . . Martial Activations . | . . . . . . . Shielding Activations . | . . . . . . . Robots Disrupted . | . . . . . . . Combat Hostiles . | . . . . . . . Robots Corrupted 1 | . . 1 . . . . Combat Hostiles 1 | . . 1 . . . . Parts Fried 1 | . 1 . . . . . Impact Corruptions . | . . . . . . . Robots Melted . | . . . . . . . Combat Hostiles . | . . . . . . . Parts Melted . | . . . . . . . Heat Transferred 693 | . 125 346 . 148 74 . Parts Sabotaged . | . . . . . . . Parts Stolen 2 | . . . . . . 2 Parts Stripped . | . . . . . . . Power Chain Reactions 2 | . 1 1 . . . . Alert | -11 -10 -9 -8 -8 -8 -8 ------- Run | Yrd Mat Mat Mat Sto Rec Scr Maximum Alert Level 1 | . . 1 . . . . Low Security (%) 94 | 100 100 75 100 100 100 . Level 1 5 | . . 24 . . . . Level 2 . | . . . . . . . Level 3 . | . . . . . . . Level 4 . | . . . . . . . Level 5 . | . . . . . . . High Security . | . . . . . . . Max Security . | . . . . . . . Sterilizations 1 | . 1 . . . . . Peak Influence 265 | . 158 265 132 62 186 . Initial 101 | . . . 101 51 9 . Average 52 | . 35 93 108 26 80 . Influence Increases 1320 | . 335 530 71 151 233 . Destroy 0b10 Robot/C 580 | . 140 320 20 60 40 . Destroy 0b10 Robot/NC 30 | . 15 15 . . . . Destroy Leader 166 | . 32 104 10 20 . . Successful Hack 41 | . 19 . 11 5 6 . Disable Machine 105 | . . 45 30 30 . . Destroy Structure 35 | . 12 16 . 6 1 . Lose Combat Pursuer 75 | . 15 30 . 30 . . Miscellaneous 288 | . 102 . . . 186 . Influence Decreases 1320 | . 335 289 190 247 112 147 Entered New Map 375 | . . . 140 71 17 147 Time Decay 777 | . 200 256 50 176 95 . Lost Part 33 | . . 33 . . . . Purge Threat 135 | . 135 . . . . . Squads Dispatched 6 | . 1 4 . 1 . . Investigation 1 | . . 1 . . . . Extermination . | . . . . . . . Reinforcement 5 | . 1 3 . 1 . . Assault . | . . . . . . . Garrison . | . . . . . . . Intercept . | . . . . . . . Searches Triggered . | . . . . . . . Construction Impeded . | . . . . . . . Haulers Reinforced . | . . . . . . . Active Scanning Responses . | . . . . . . . Cargo Convoy Interrupts . | . . . . . . . Stealth | -11 -10 -9 -8 -8 -8 -8 --------- Run | Yrd Mat Mat Mat Sto Rec Scr Distress Signals 5 | . . 3 1 1 . . Communications Jammed . | . . . . . . . Distress Signals . | . . . . . . . Times Spotted 113 | . 18 30 8 13 2 42 Peak Tracking Total 14 | . 5 5 6 8 1 14 Tactical Retreats 5 | . 1 2 . 1 . 1 Traps | -11 -10 -9 -8 -8 -8 -8 ------- Run | Yrd Mat Mat Mat Sto Rec Scr Traps Triggered 3 | . . 2 . 1 . . Indirectly . | . . . . . . . Trap Hack Attempts . | . . . . . . . Triggered . | . . . . . . . Disarmed . | . . . . . . . Reprogrammed . | . . . . . . . Reused 1 | . . . . . . 1 Traps Extracted . | . . . . . . . Installed 1 | . . . . . . 1 Triggered . | . . . . . . . Most Traps Carried 2 | . 2 1 . . . 1 Machines | -11 -10 -9 -8 -8 -8 -8 ---------- Run | Yrd Mat Mat Mat Sto Rec Scr Machines Disabled 15 | . 1 3 2 2 . 7 Max in Single Turn 3 | . 1 1 1 2 . 3 Machines Repaired . | . . . . . . . Machines Dismantled . | . . . . . . . Machines Sabotaged . | . . . . . . . Overloaded Fab Kills . | . . . . . . . Hacking | -11 -10 -9 -8 -8 -8 -8 --------- Run | Yrd Mat Mat Mat Sto Rec Scr Machines Accessed 14 | . 7 . 1 1 3 2 Terminals 12 | . 7 . 1 1 3 . Fabricators . | . . . . . . . Repair Stations . | . . . . . . . Recycling Units . | . . . . . . . Scanalyzers . | . . . . . . . Garrison Access . | . . . . . . . Total Hacks 38 | . 19 . 3 2 6 8 Successful 25 | . 10 . 2 1 4 8 Failed 13 | . 9 . 1 1 2 . Catastrophic . | . . . . . . . Database Lockouts . | . . . . . . . Manual 21 | . 14 . 1 1 5 . Terminals 30 | . 19 . 3 2 6 . Fabricators . | . . . . . . . Repair Stations . | . . . . . . . Recycling Units . | . . . . . . . Scanalyzers . | . . . . . . . Garrison Access . | . . . . . . . Terminal Hacks 17 | . 4 . 1 1 3 8 Robot Analysis 7 | . . . . . . 7 Prototype ID Bank 1 | . 1 . . . . . Open Door 1 | . . . . . . 1 Branch Access Points 1 | . . . 1 . . . Unreport Threat 1 | . 1 . . . . . Locate Traps 2 | . 2 . . . . . Zone Layout 4 | . . . . 1 3 . Fabricator Hacks . | . . . . . . . Repair Station Hacks . | . . . . . . . Recycling Unit Hacks . | . . . . . . . Scanalyzer . | . . . . . . . Garrison Access Hacks . | . . . . . . . Unauthorized Hacks 8 | . 6 . 1 . 1 . Terminals 8 | . 6 . 1 . 1 . Botnet 1 | . 1 . . . . . Skim 7 | . 5 . 1 . 1 . Fabricators . | . . . . . . . Repair Stations . | . . . . . . . Recycling Units . | . . . . . . . Scanalyzers . | . . . . . . . Garrison Access . | . . . . . . . Data Cores Recovered 2 | . 2 . . . . . Used 1 | . 1 . . . . . Hacking Detections 9 | . 5 . 1 1 2 . Full Trace Events . | . . . . . . . Feedback Events . | . . . . . . . Feedback Blocked . | . . . . . . . Robot Schematics Acquired . | . . . . . . . Robots Built . | . . . . . . . Authchips . | . . . . . . . Time . | . . . . . . . Total Robot Build Rating . | . . . . . . . Part Schematics Acquired . | . . . . . . . Parts Built . | . . . . . . . Authchips . | . . . . . . . Time . | . . . . . . . Total Part Build Rating . | . . . . . . . Part Studies Acquired . | . . . . . . . Parts Repaired . | . . . . . . . Time . | . . . . . . . Parts Recycled . | . . . . . . . Recycled Matter . | . . . . . . . Retrieved Matter . | . . . . . . . Retrieved Components . | . . . . . . . Parts Scanalyzed . | . . . . . . . Part Schematics Acquired . | . . . . . . . Parts Damaged . | . . . . . . . Bothacking | -11 -10 -9 -8 -8 -8 -8 ------------ Run | Yrd Mat Mat Mat Sto Rec Scr Used RIF Installer . | . . . . . . . Robots Hacked . | . . . . . . . Non-combat . | . . . . . . . Combat . | . . . . . . . Robot Hacks Applied . | . . . . . . . Relay Couplers Released . | . . . . . . . Fabnet Peak Effective % . | . . . . . . . Robots Rewired . | . . . . . . . Allies Hacked . | . . . . . . . Hacks Repelled . | . . . . . . . Allies | -11 -10 -9 -8 -8 -8 -8 -------- Run | Yrd Mat Mat Mat Sto Rec Scr Total Allies 1 | . . . . . . 1 Largest Group 1 | . . . . . . 1 Highest-Rated Group 464 | . . . . . . 464 Highest-Rated Ally 464 | . . . . . . 464 Total Orders . | . . . . . . . Ally Attacks 48 | . . . . . . 48 Total Damage 2910 | . . . . . . 2910 Kills 17 | . . . . . . 17 Allies Corrupted . | . . . . . . . Allies Melted . | . . . . . . . X0-1V1 Amusement Gains 151 | . 26 36 1 6 7 75 Average Entertainment 22 | . 22 26 32 27 15 12 Good Acts 23 | . 5 6 2 7 1 2 Bad Acts 20 | . 8 2 . . 1 9 Intel | -11 -10 -9 -8 -8 -8 -8 ------- Run | Yrd Mat Mat Mat Sto Rec Scr Active Infowar (turns) 9323 | . . . 87 45 203 8988 Optics 1796 | . . . . . . 1796 Sensors 309 | . . . 87 45 . 177 IFF 457 | . . . . . . 457 Terrain 1182 | . . . . . . 1182 Traps 38 | . . . . . . 38 Decoding 2383 | . . . . . 203 2180 Triangulation 745 | . . . . . . 745 Cloaking 1458 | . . . . . . 1458 Spoofing 2065 | . . . . . . 2065 Jamming 137 | . . . . . . 137 ECM 13 | . . . . . . 13 Robot Analysis Total 7 | . . . . . . 7 Derelict Logs Recovered . | . . . . . . . Drone Launches 3 | . . . . . . 3 Drone Recoveries . | . . . . . . . Exploration | -11 -10 -9 -8 -8 -8 -8 ------------- Run | Yrd Mat Mat Mat Sto Rec Scr Turns Passed 25083 | 70 1634 732 107 447 312 21781 Spaces Moved 3266 | 40 473 285 60 264 235 1909 Core 6 | 6 . . . . . . Treads 1046 | 34 473 285 60 16 . 178 Legs . | . . . . . . . Wheels 2214 | . . . . 248 235 1731 Hover . | . . . . . . . Flight . | . . . . . . . Fastest Speed 50 | 50 160 152 152 120 115 105 Average Speed 135 | 153 160 169 152 142 121 124 Slowest Speed 320 | 160 160 320 152 152 150 240 Overloaded Moves . | . . . . . . . Propulsion Burnouts . | . . . . . . . Robots Hopped . | . . . . . . . Potential Cave-ins . | . . . . . . . Cave-ins Triggered . | . . . . . . . Exploration Rate (%) 49 | 3 90 39 8 48 72 84 Regions Visited 6 Branch Regions 3 Pre-discovered Areas . | . . . . . . . Known Exits Taken 1 | . . . 1 . . . Unknown Exits Taken 5 | 1 1 1 . 1 1 . Scrap Searched 5 | . . . . . . 5 Spaces Dug 1 | . . . . 1 . . Terrain Destroyed 93 | . 11 13 . 6 . 63 Melee 1 | . . . . 1 . . Projectile . | . . . . . . . AOE 92 | . 11 13 . 5 . 63 Terrain Rammed . | . . . . . . . Walls Destroyed . | . . . . . . . Machines Disabled . | . . . . . . . Actions | -11 -10 -9 -8 -8 -8 -8 --------- Run | Yrd Mat Mat Mat Sto Rec Scr Total 23694 | 46 1291 422 69 315 251 21300 Wait 20155 | . 754 32 5 34 11 19319 Move 3260 | 39 472 284 59 263 234 1909 Hop . | . . . . . . . Pick Up 44 | 1 16 13 . . . 14 Fast Attach 18 | 6 1 6 2 . . 3 Attach 15 | . 2 4 . . . 9 Detach 4 | . 1 . . . . 3 Swap 26 | . 9 7 . 7 . 3 Drop 35 | . 5 14 . . . 16 Fire 116 | . 31 54 . 6 6 19 Melee 20 | . . 8 3 5 . 4 Ram . | . . . . . . . Kick . | . . . . . . . Crush . | . . . . . . . Escape Stasis . | . . . . . . . Rewire . | . . . . . . . Trap 1 | . . . . . . 1 Miscellaneous . | . . . . . . . Route ------- -11/Scrapyard -10/Materials (discovered 6 exits: [*Mat x3] / [*Min x2] / [*Sub]) -9/Materials -8/Materials (discovered 2 exits: *Sto x2) -8/Storage -8/Recycling (discovered 2 exits: [*Fac] / *Scr) -8/Scraptown History --------- Turn | Location | Event 16 | -11/Scrapyard | Discovered new exit (range 13) 71 | -11/Scrapyard | Entered Materials 72 | -10/Materials | Met a group of wandering Federalists 79 | -10/Materials | Discovered new exit (range 16) 200 | -10/Materials | Discovered new exit (range 6) 306 | -10/Materials | Build established: Mutant 668 | -10/Materials | Made a sacrifice at D.C.S.S. Altar Unit 668 | -10/Materials | Forcibly received Sfc. Transmogifier from X0-1V1 788 | -10/Materials | Discovered new exit (range 6) 894 | -10/Materials | Discovered new exit (range 6) 1019 | -10/Materials | Discovered new exit (range 16) 1086 | -10/Materials | Core integrity fell below 50% 1212 | -10/Materials | X0-1V1 added 0b10 threat records associated with you (minor) 1222 | -10/Materials | X0-1V1 made a cryptic comment about sterilization and BL-4Z3 1393 | -10/Materials | Discovered new exit (range 11) 1423 | -10/Materials | Sterilization system engaged 1423 | -10/Materials | Non-combat units ordered to evacuate 1461 | -10/Materials | Loaded intel: 8 trap records 1503 | -10/Materials | X0-1V1 vaporized surrounding terrain (radius 15) 1523 | -10/Materials | Combat units ordered to evacuate 1542 | -10/Materials | X0-1V1 foreshadows a heat wave 1660 | -10/Materials | X0-1V1 caused items to flee you 1686 | -10/Materials | X0-1V1 vaporized surrounding terrain (radius 24) 1702 | -10/Materials | System corruption reached 10% 1705 | -10/Materials | Entered another Materials area 1705 | -9/Materials | Evolved 2 slots: Utility x2 1773 | -9/Materials | X0-1V1 upgraded hostiles (x1) 1788 | -9/Materials | System corruption reached 10% 2057 | -9/Materials | Core integrity fell below 50% 2395 | -9/Materials | Discovered new exit (range 10) 2437 | -9/Materials | Entered another Materials area 2437 | -8/Materials | Evolved 2 slots: Utility x2 2447 | -8/Materials | Discovered new exit (range 12) 2516 | -8/Materials | Identified exit to Storage 2544 | -8/Materials | Entered Storage 2567 | -8/Storage | Ranged accuracy permanently improved by X0-1V1 (+9%; -90 max core) 2583 | -8/Storage | X0-1V1 activates XOMVISION 2986 | -8/Storage | Used back door to open Recycling access 2986 | -8/Storage | Discovered new exit (range 5) 2991 | -8/Storage | Entered Recycling 3148 | -8/Recycling | X0-1V1 added 0b10 threat records associated with you (considerable) 3233 | -8/Recycling | Discovered new exit (range 18) 3275 | -8/Recycling | Scanned before Scraplab entrance 3291 | -8/Recycling | Entered Scraplab 3291 | -8/Recycling | X0-1V1 activates XOMVISION 3300 | -8/Recycling | Discovered new exit (range 3) 3303 | -8/Recycling | Entered Scraptown 3536 | -8/Scraptown | Discovered new exit (range 13) 3560 | -8/Scraptown | Heard Great Nut preacher, LISTEN AND RECITE! 3625 | -8/Scraptown | Visited Assassins FH 3653 | -8/Scraptown | Visited Cyclists 3903 | -8/Scraptown | Visited UFD Registry 3908 | -8/Scraptown | Registered with UFD as "Phasechaser" 3945 | -8/Scraptown | Visited Junk Repository 3985 | -8/Scraptown | Visited Scrapoid Pod Storage 4003 | -8/Scraptown | Visited Sword Containment 4055 | -8/Scraptown | Visited Scrapoid Research Area 4140 | -8/Scraptown | Visited DA-N13 Charitable Foundation 4154 | -8/Scraptown | Found DCF Scrap (32 items) 4183 | -8/Scraptown | Visited Chapter 10 4205 | -8/Scraptown | Visited Science Guys 4297 | -8/Scraptown | Visited Analyses Database 23643 | -8/Scraptown | Found Prototype Slashing Weapon 23681 | -8/Scraptown | Identified Companion Sword 23744 | -8/Scraptown | Visited A0-MCA Data Center 23751 | -8/Scraptown | Given a C rating by A0-MCA 23756 | -8/Scraptown | Found A0-MCA's Component Scanner 24656 | -8/Scraptown | Warned about trapping Scraptown 24824 | -8/Scraptown | X0-1V1 brought Wyrm Statue to life 24824 | -8/Scraptown | Attacked by Scraptown defenders 25012 | -8/Scraptown | X0-1V1 collapsed Factory access 25022 | -8/Scraptown | X0-1V1 sent you into danger 25060 | -8/Scraptown | Allies destroyed Triborg 25084 | -8/Scraptown | Self-destructed Last Messages --------------- 25067_ 3J-EIQ(j) IFF system glitched. 25067_ 3B-SFH(r) destroyed. 25069_ The unstable cave ceiling collapses. 25069_ Penetrated by Bolt. 25070_ Hvy. Regenerative Plating destroyed. 25072_ Lgt. Deuterium Engine destroyed. 25073_ Overheating: Energy bleed (-13). 25074_ Penetrated by Bolt. 25074_ Bolt penetrates PQ-TRA(j). Companion Sword: "All the other swords are going to make fun of me now." 25075_ 2A-H8I(j): "To scrap with you!" 25076_ The unstable cave ceiling collapses. 25080_ SF-B6R(x) suffers critical hit (Meltdown). 25080_ Bolt penetrates Chaos Wyrm. 25082_ ZR-IDE(j) heat damages Scrap Suit. 25082_ Bolt penetrates Chaos Wyrm. 25082_ ZR-IDE(j) IFF system glitched. 25084_ B8-8O9(x) destroyed. Map ----- +----------------------------------------------------+ | "#???????????????#" " #?##########????????? | | "" "#???#########???#"" #?#"""""""""#?"??????? | | "" "#???#"""""""#???##### #?#" "#"?????? " | | "" "#???#"" ""#???????# !#?#" ???"?? " | | "#???#"" ""#???????# =%#?#" "#?? "" ?" | | """###?#""" ""#???????# [#?#" """ "#? " " | | #?#"" ""#??????## ###" "#" ? | | ###""" """######## ##"""""" ""#"" """""" | | | | | | | | ###### ########## ##########"" """"#### | | #????# #????????# # #????????#" "#??? | | #????" "?????##?## ########?#" ""#??? | | #??? " " ???? ## """""""#?#" """#??? | | """ ""#??" "??### # ""#?#" """#??? | | """ "#? " " ?#"" "" "#???""""""#??? | | """ "#""""" """""#" "" ""#???#####????? | | "" "###### ######" """"""#????????????? | | " "#?"""" """"?#" #"""####????????????? | | """ ""#? " " ?#" "" #############??????"? | | ### ###??" "??#" "r #""""""""""""#?????? " | | ??# ????? " " ???#"""""" #"""""X""""""#??"? " | | #?####?????" "????####### #"" " " ""#?? " | | ####???????# #??????###?# ;"" ""#??? "" | | ######### ########""##@ #"" ""#??? | | =![!!%!*DD #"" ""#????" | | % !=%!!*= DD # ""#?????" " | | * ##############"##*#; %=% "#?????? | | #?????????????????###= ! * #??????? | | ######??????????????#; =%= ##### # # ##### | | """"""#??????#?######## x / =%! | | "#?????? ## ! !/= | | = "#?????? """""" # %]% jj | | ![! "#??????"" "" E | | !! "#????# " % # % | | !] "#????# " # # ;# # | | * "#????# " ! %j # ####?## | | !/! "#????# " #?????# | | "#????# "" # % # #?????# | | """ ""#????# """"" # !% ;##???# | | ### ###????## ## # ;#????# | | ### ###?????#######"### E "#????# | | """ ""#???????????##?# & ##????# | | "#??????????????# j #????## | | "" "#????????######## # #?????# | | "" "#????""##""""" # #"#########?????# | | "#??? " # ###?????????????# | | ""#???????# #?????#?????????# | | """""#???????# """ # #?????????#?????# | +----------------------------------------------------+ Best States ------------- Heat Dissipation 141 Coolant Potential 180 Energy Generation 21 Energy Capacity 2200 Matter Stores 744 Matter Capacity 1300 Sight Range 23 Robot Scan Range 20 Terrain Scan Range 30 Terrain Scan Density 1010 ECM Strength 3 Jamming Range 16 Cloak Strength 4 Additional Mass Support 12 EM Shielding 3 Corruption Block 8 Armor Coverage 1200 Resistance: KI 40 Resistance: TH 30 Resistance: EX 75 Resistance: EM 50 Core Shielding 30 Utility Shielding 90 Point Defense Rating 240 Weapon Cycling 25 Evasion (%) 40 Targeting Accuracy 20 Melee Accuracy 12 Launcher Accuracy 60 Target Analysis 6 Core Analysis 6 Armor Integrity Analysis 40 Recoil Reduction 12 Matter Filtering 50 Energy Filtering 50 Particle Charging 40 Kinecelleration 50 Force Boost 30 Salvage Targeting 4 Offensive Hacking 14 Defensive Hacking 12 Item Schematics ----------------- None Robot Schematics ------------------ None Fabricated ------------ Nothing Repaired ---------- Nothing Studied --------- None Alien Tech Used ----------------- None Achievements -------------- None Challenges ------------ None Game ------ Seed ContainmentPulsarBrace Manual? 0 Play Time 01:16:14 Cumulative 220.8 hours Start 2026.08.25 @ 11:41:57 End 2026.08.25 @ 13:10:07 Sessions 1 Manual Loads 0 Difficulty Rogue Special Mode None Game No. 141 Rogue 141 Adventurer 0 Explorer 0 Win Type - Total 4 Types 2/0/0/1/0/0/0/1/0/0 Lore% 57 Gallery% 72 Achievement% 55 Wizard Run 0 Options --------- Layout 2 ASCII 0 Keyboard 0 Movement Mouse Keybinds 0 Fullscreen 1 Font 32/SmallcapsGlow Map View 50x44 Zoom Use 0% Tactical HUD 1 Map Filters NONE Filters NONE Steam 1 RUN: d9026427-e755-4b22-8c46-3d00269aa6b0